fUST/lending_fUST_20251115
["ID","MTS","AMOUNT","RATE_DAILY","PERIOD"]
[393976924,1763153442861,-1139.0,0.0002479,2]
[393976927,1763153442874,-1626.0,0.0002479,2]
[393976928,1763153442886,-275.04951286,0.0002479,2]
[393976929,1763153442899,-592.95391045,0.0002479,2]
[393976930,1763153442912,-655.0,0.00024795,2]
[393976931,1763153442924,-24791.869329,0.000248,2]
[393976932,1763153442936,-8585.20555079,0.000248,2]
[393976975,1763153443415,-851.72791043,0.000248,2]
[393977086,1763153444538,-159.57128,0.00024658,7]
[393977087,1763153444547,-151.0,0.00024658,7]
[393977088,1763153444556,-151.0,0.00024658,7]
[393977089,1763153444566,-2962.24477004,0.000248,2]
[393977090,1763153444575,-288.19626565,0.00024813,2]
[393977091,1763153444584,-629.0,0.00024817,2]
[393977092,1763153444593,-2166.0,0.00024817,2]
[393977093,1763153444603,-987.0,0.00024817,2]
[393977094,1763153444612,-4408.0,0.00024817,2]
[393977095,1763153444621,-360.0,0.00024863,2]
[393977096,1763153444630,-151.0,0.000249,7]
[393977097,1763153444639,-191.29322,0.000249,7]
[393977098,1763153444648,-151.0,0.000249,7]
[393977099,1763153444657,-171.012836,0.000249,7]
[393977100,1763153444666,-363.380192,0.000249,2]
[393977101,1763153444675,-151.0,0.000249,7]
[393977102,1763153444684,-151.0,0.000249,7]
[393977103,1763153444693,-151.0,0.000249,7]
[393977104,1763153444702,-151.0,0.000249,2]
[393977105,1763153444712,-151.0,0.000249,7]
[393977106,1763153444721,-196.781899,0.000249,7]
[393977107,1763153444730,-196.781899,0.000249,7]
[393977108,1763153444742,-151.0,0.000249,7]
[393977109,1763153444752,-196.781899,0.000249,7]
[393977110,1763153444761,-196.781899,0.000249,7]
[393977111,1763153444770,-151.0,0.000249,7]
[393977112,1763153444780,-151.0,0.000249,7]
[393977113,1763153444794,-229.118033,0.000249,7]
[393977114,1763153444804,-24.36913031,0.000249,7]
[393977115,1763153444819,-204.74890269,0.000249,7]
[393977116,1763153444829,-229.118033,0.000249,7]
[393977117,1763153444839,-229.118033,0.000249,7]
[393977118,1763153444848,-176.114448,0.000249,7]
[393977119,1763153444857,-176.114448,0.000249,7]
[393977120,1763153444866,-25865.05162367,0.000249,2]
[393977128,1763153445303,-151.0,0.00024658,7]
[393977129,1763153445313,-151.0,0.00024658,7]
[393977130,1763153445322,-151.0,0.00024658,7]
[393977131,1763153445331,-19.3626,0.000249,2]
[393977132,1763153445370,-1751.527655,0.000249,2]
[393977138,1763153446545,-151.0,0.00024658,7]
[393977139,1763153446554,-18307.816992,0.000249,2]
[393977140,1763153446667,-171587.88046,0.000249,2]
[393977141,1763153447070,-2536.695805,0.000249,2]
[393977142,1763153447081,-21647.0521246,0.000249,2]
[393977143,1763153452247,150.0,0.00019637,2]
[393977150,1763153500497,1640.86388266,0.0002,2]
[393977151,1763153507224,71.55127852,0.00030665,56]
[393977152,1763153508817,5000.0,0.0002,2]
[393977153,1763153510496,-5000.0,0.00020366,2]
[393977154,1763153510520,-150.0,0.00020572,2]
[393977155,1763153510542,-500.0,0.00022528,2]
[393977156,1763153510565,-499.99999999,0.00022528,2]
[393977157,1763153510587,-500.0,0.00022528,2]
[393977158,1763153510609,-500.0,0.00022529,2]
[393977159,1763153510630,-194.93943575,0.00022529,2]
[393977160,1763153510652,-162.93190655,0.00022529,2]
[393977161,1763153510673,-500.0,0.00022573,2]
[393977162,1763153510694,-412.1361344,0.00022573,2]
[393977163,1763153510714,-500.0,0.00022573,2]
[393977164,1763153510735,-500.0,0.00022773,2]
[393977165,1763153510765,-500.0,0.00023121,2]
[393977166,1763153510794,-1000.0,0.00023321,2]
[393977167,1763153510816,-1500.0,0.00023868,2]
[393977168,1763153510837,-1535.83379211,0.00024416,2]
[393977169,1763153510862,-5585.95883311,0.000248,2]
[393977170,1763153510884,-300.0,0.00024899,2]
[393977171,1763153510906,-120714.19319573,0.000249,2]
[393977172,1763153511100,-176.114448,0.000249,7]
[393977173,1763153511124,-176.114448,0.000249,7]
[393977174,1763153511147,-151.0,0.000249,7]
[393977175,1763153511172,-151.0,0.000249,7]
[393977176,1763153511195,-664.219726,0.000249,7]
[393977177,1763153511219,-533.335499,0.000249,7]
[393977178,1763153511242,-664.219726,0.000249,7]
[393977179,1763153511267,-155.197752,0.000249,7]
[393977180,1763153511292,-533.335499,0.000249,7]
[393977181,1763153511314,-664.219726,0.000249,7]
[393977182,1763153511336,-533.335499,0.000249,7]
[393977183,1763153511358,-664.219726,0.000249,7]
[393977184,1763153511379,-533.335499,0.000249,7]
[393977185,1763153511399,-151.0,0.000249,7]
[393977186,1763153511420,-151.0,0.000249,7]
[393977187,1763153511443,-151.0,0.000249,7]
[393977188,1763153511466,-151.0,0.000249,7]
[393977189,1763153511487,-151.0,0.000249,7]
[393977190,1763153511508,-279.935682,0.000249,7]
[393977191,1763153511531,-1647.210075,0.000249,7]
[393977192,1763153511560,-1647.210075,0.000249,7]
[393977193,1763153511584,-1647.210075,0.000249,7]
[393977194,1763153511606,-1647.210075,0.000249,7]
[393977195,1763153511627,-151.0,0.000249,7]
[393977196,1763153511649,-151.0,0.000249,7]
[393977197,1763153511670,-151.0,0.000249,7]
[393977198,1763153511691,-151.0,0.000249,7]
[393977199,1763153511712,-159.57128,0.000249,7]
[393977200,1763153511733,-161.752414,0.000249,7]
[393977201,1763153511754,-159.57128,0.000249,7]
[393977202,1763153511776,-159.57128,0.000249,7]
[393977203,1763153511800,-151.0,0.000249,7]
[393977204,1763153511823,-159.57128,0.000249,7]
[393977205,1763153511847,-151.0,0.000249,7]
[393977206,1763153511869,-151.0,0.000249,7]
[393977207,1763153511890,-151.0,0.000249,7]
[393977208,1763153511911,-151.0,0.000249,7]
[393977209,1763153511933,-151.0,0.000249,7]
[393977210,1763153511955,-151.0,0.000249,7]
[393977211,1763153511976,-500.0,0.000249,2]
[393977212,1763153511996,-1000.0,0.000249,2]
[393977213,1763153512017,-1000.0,0.000249,2]
[393977214,1763153512038,-1004.54098877,0.000249,2]
[393977215,1763153512059,-1139.0,0.00024927,2]
[393977216,1763153512080,-1626.0,0.00024927,2]
[393977217,1763153512100,-154.17176641,0.00025,2]
[393977218,1763153512121,-363.380192,0.00025008,2]
[393977219,1763153512142,-150.0,0.00025042,2]
[393977220,1763153512165,-150.0,0.00025042,2]
[393977221,1763153512186,-423.0,0.00025042,2]
[393977222,1763153512208,-413.0,0.00025042,2]
[393977223,1763153512230,-150.0,0.00025042,2]
[393977224,1763153512253,-915.5737834,0.00025054,2]
[393977225,1763153512273,-1139.0,0.00025064,2]
[393977226,1763153512296,-1626.0,0.00025064,2]
[393977227,1763153512315,-600.0,0.00025064,2]
[393977228,1763153512338,-363.380192,0.00025115,2]
[393977229,1763153512359,-798.51530536,0.00025164,2]
[393977230,1763153512380,-500.0,0.00025174,2]
[393977231,1763153512402,-1139.0,0.00025201,2]
[393977232,1763153512422,-1626.0,0.00025201,2]
[393977233,1763153512443,-600.0,0.00025201,2]
[393977234,1763153512463,-250.0,0.00025205,2]
[393977235,1763153512485,-363.380192,0.00025222,2]
[393977236,1763153512505,-363.380192,0.0002533,2]
[393977237,1763153512527,-1139.0,0.00025338,2]
[393977238,1763153512551,-1626.0,0.00025338,2]
[393977239,1763153512571,-600.0,0.00025338,2]
[393977240,1763153512594,-300.0,0.00025397,20]
[393977241,1763153512617,-300.0,0.00025397,20]
[393977242,1763153512639,-300.0,0.00025397,20]
[393977243,1763153512662,-300.0,0.00025397,20]
[393977244,1763153512683,-460.0,0.00025411,2]
[393977245,1763153512707,-500.0,0.00025448,2]
[393977246,1763153512728,-1139.0,0.00025475,2]
[393977247,1763153512748,-1626.0,0.00025475,2]
[393977248,1763153512769,-600.0,0.00025475,2]
[393977249,1763153512792,-1139.0,0.00025612,2]
[393977250,1763153512814,-1626.0,0.00025612,2]
[393977251,1763153512836,-600.0,0.00025612,2]
[393977252,1763153512858,-613.23192408,0.00025722,2]
[393977253,1763153512879,-1139.0,0.00025749,2]
[393977254,1763153512907,-1626.0,0.00025749,2]
[393977255,1763153512928,-600.0,0.00025749,2]
[393977256,1763153512948,-500.0,0.00025753,2]
[393977257,1763153512970,-1161.65541567,0.00025886,2]
[393977258,1763153512992,-1632.12327781,0.00025886,2]
[393977259,1763153513143,-600.0,0.00025886,2]
[393977260,1763153513167,-560.0,0.00025958,2]
[393977261,1763153513190,-600.0,0.00026023,2]
[393977262,1763153513219,-293.03735961,0.00026027,2]
[393977263,1763153513242,-500.0,0.00026027,2]
[393977264,1763153513266,-500.0,0.00026027,2]
[393977265,1763153513294,-500.0,0.00026027,2]
[393977266,1763153513318,-500.0,0.00026027,2]
[393977267,1763153513342,-500.0,0.00026027,2]
[393977268,1763153513364,-500.0,0.00026027,2]
[393977269,1763153513387,-500.0,0.00026027,2]
[393977270,1763153513408,-852.42881612,0.00026028,2]
[393977271,1763153513430,-2411.79769484,0.00026028,2]
[393977272,1763153513451,-852.42881612,0.00026062,2]
[393977273,1763153513471,-5000.0,0.00026064,2]
[393977274,1763153513492,-852.42881612,0.00026096,2]
[393977275,1763153513512,-852.42881612,0.0002613,2]
[393977276,1763153513533,-600.0,0.0002616,2]
[393977277,1763153513558,-853.28124494,0.00026164,2]
[393977278,1763153513580,-233.662,0.00026259,2]
[393977279,1763153513600,-250.0,0.00026259,2]
[393977280,1763153513621,-265.446,0.00026259,2]
[393977281,1763153513642,-600.0,0.00026297,2]
[393977282,1763153513664,-600.0,0.00026434,2]
[393977283,1763153513686,-660.0,0.00026506,2]
[393977284,1763153513707,-600.0,0.00026571,2]
[393977285,1763153513730,-158.68,0.000266,7]
[393977286,1763153513753,-730.158335,0.00026676,2]
[393977287,1763153513774,-600.0,0.00026708,2]
[393977288,1763153513800,-326.33988904,0.00026813,2]
[393977289,1763153513822,-600.0,0.00026845,2]
[393977290,1763153513844,-420.0,0.00026977,2]
[393977291,1763153513865,-600.0,0.00026982,2]
[393977292,1763153513886,-760.0,0.00027054,2]
[393977293,1763153513906,-813.2819276,0.00027058,2]
[393977294,1763153513928,-600.0,0.00027119,2]
[393977295,1763153513948,-600.0,0.00027256,2]
[393977296,1763153513971,-600.0,0.00027393,2]
[393977297,1763153513992,-500.0,0.00027397,2]
[393977298,1763153514014,-151.0,0.00027397,2]
[393977299,1763153514035,-151.0,0.00027397,7]
[393977300,1763153514060,-556.20495,0.00027397,7]
[393977301,1763153514082,-556.20495,0.00027397,7]
[393977302,1763153514104,-556.20495,0.00027397,7]
[393977303,1763153514126,-556.20495,0.00027397,7]
[393977304,1763153514148,-556.20495,0.00027397,7]
[393977305,1763153514173,-556.20495,0.00027397,7]
[393977306,1763153514196,-556.20495,0.00027397,7]
[393977307,1763153514220,-556.20495,0.00027397,7]
[393977308,1763153514243,-556.20495,0.00027397,7]
[393977309,1763153514266,-556.20495,0.00027397,7]
[393977310,1763153514291,-556.20495,0.00027397,7]
[393977311,1763153514313,-556.20495,0.00027397,7]
[393977312,1763153514335,-363.380192,0.000274,7]
[393977313,1763153514357,-600.0,0.0002753,2]
[393977314,1763153514378,-500.0,0.00027534,2]
[393977315,1763153514398,-151.0,0.00027534,2]
[393977316,1763153514420,-860.0,0.00027602,2]
[393977317,1763153514441,-600.0,0.00027667,2]
[393977318,1763153514462,-500.0,0.00027671,2]
[393977319,1763153514483,-151.0,0.00027671,2]
[393977320,1763153514502,-600.0,0.00027804,2]
[393977321,1763153514524,-500.0,0.00027808,2]
[393977322,1763153514545,-238.2301355,0.00027808,2]
[393977323,1763153514564,-629.0,0.00027817,2]
[393977324,1763153514585,-2148.0,0.00027817,2]
[393977325,1763153514605,-987.0,0.00027817,2]
[393977326,1763153514626,-600.0,0.00027941,2]
[393977327,1763153514648,-500.0,0.00027945,2]
[393977328,1763153514669,-942.0,0.00028,7]
[393977329,1763153514688,-150.0,0.00028042,2]
[393977330,1763153514709,-150.0,0.00028042,2]
[393977331,1763153514729,-413.0,0.00028042,2]
[393977332,1763153514749,-413.0,0.00028042,2]
[393977333,1763153514770,-150.0,0.00028042,2]
[393977334,1763153514795,-181.4677267,0.00028043,2]
[393977335,1763153514817,-600.0,0.00028078,2]
[393977336,1763153514838,-500.0,0.00028082,2]
[393977337,1763153514859,-960.0,0.0002815,2]
[393977338,1763153514880,-610.24164252,0.00028215,2]
[393977339,1763153514902,-500.0,0.00028219,2]
[393977340,1763153514923,-363.380192,0.00028273,7]
[393977341,1763153514944,-2411.79769484,0.00028318,2]
[393977342,1763153514965,-500.0,0.00028356,2]
[393977343,1763153515105,-510.27854692,0.00028493,2]
[393977344,1763153515127,-5000.0,0.00028664,2]
[393977345,1763153515148,-1060.0,0.00028698,2]
[393977346,1763153515169,-211.86741726,0.0002875,2]
[393977347,1763153515190,-364.48351244,0.00028813,2]
[393977348,1763153515217,-402.51167418,0.00029,2]
[393977349,1763153515239,-753.60501749,0.00029,10]
[393977350,1763153515260,-885.96536634,0.00029,2]
[393977351,1763153515283,-363.380192,0.00029146,7]
[393977352,1763153515307,-587.0,0.00029228,2]
[393977353,1763153515328,-1160.0,0.00029246,2]
[393977354,1763153515349,-150.0,0.00029259,2]
[393977355,1763153515370,-150.0,0.00029259,2]
[393977356,1763153515391,-158.0,0.00029288,14]
[393977357,1763153515412,-236.61254651,0.00029426,2]
[393977358,1763153515432,-154.63306709,0.00029772,2]
[393977359,1763153515453,-1260.0,0.00029794,2]
[393977360,1763153515473,-206.779052,0.000299,2]
[393977361,1763153515494,-975.01364442,0.0003,10]
[393977362,1763153515514,-508.0,0.0003,2]
[393977363,1763153515535,-3511.49339989,0.0003,2]
[393977364,1763153515559,-357.79649309,0.0003,2]
[393977365,1763153515581,-268.76054464,0.0003,2]
[393977366,1763153515601,-900.0,0.0003,2]
[393977367,1763153515622,-151.0,0.0003,7]
[393977368,1763153515643,-2000.0,0.0003,7]
[393977369,1763153515880,196.43,0.000249,7]
[393977370,1763153516397,500.0,0.00022528,2]
[393977371,1763153517196,2971.47172574,0.0003,2]
[393977403,1763153931407,10000.01,0.000199,2]
[393977404,1763153931428,10000.01,0.000199,2]
[393977405,1763153931448,10000.01,0.000199,2]
[393977406,1763153931468,10000.01,0.000199,2]
[393977407,1763153931490,10000.01,0.000199,2]
[393977408,1763153931511,9799.95,0.000199,2]
[393977832,1763154040505,400.38245665,0.00032878,120]
[393977833,1763154056192,-493.2584986,0.00021994,2]
[393977834,1763154056217,-1090.0,0.00021994,2]
[393977835,1763154056389,-183.08939229,0.00022197,2]
[393977836,1763154056415,-4887.71397898,0.00022424,2]
[393977837,1763154056442,-500.0,0.00022523,2]
[393977838,1763154056467,-618.78743593,0.00022523,2]
[393977839,1763154056492,-270.21546826,0.00022523,2]
[393977840,1763154056520,-500.0,0.00022523,2]
[393977841,1763154056547,-500.0,0.00022523,2]
[393977842,1763154056574,-500.0,0.00022523,2]
[393977843,1763154056600,-500.0,0.00022523,2]
[393977844,1763154056626,-500.0,0.00022523,2]
[393977845,1763154056656,-500.0,0.00022523,2]
[393977846,1763154056682,-500.0,0.00022523,2]
[393977847,1763154056711,-500.0,0.00022523,2]
[393977848,1763154056736,-344.2672586,0.00022523,2]
[393977849,1763154056765,-500.0,0.00022523,2]
[393977850,1763154056791,-500.0,0.00022523,2]
[393977851,1763154056819,-500.0,0.00022523,2]
[393977852,1763154056849,-500.0,0.00022523,2]
[393977853,1763154056879,-500.0,0.00022523,2]
[393977854,1763154056908,-500.0,0.00022523,2]
[393977855,1763154056934,-500.0,0.00022523,2]
[393977856,1763154056963,-424.26692329,0.00022523,2]
[393977857,1763154056989,-500.0,0.00022523,2]
[393977858,1763154057016,-500.0,0.00022523,2]
[393977859,1763154057044,-500.0,0.00022523,2]
[393977860,1763154057072,-500.0,0.00022523,2]
[393977861,1763154057100,-500.0,0.00022523,2]
[393977862,1763154057126,-500.0,0.00022523,2]
[393977863,1763154057153,-500.0,0.00022523,2]
[393977864,1763154057179,-500.0,0.00022523,2]
[393977865,1763154057206,-500.0,0.00022523,2]
[393977866,1763154057232,-500.0,0.00022523,2]
[393977867,1763154057258,-500.0,0.00022523,2]
[393977868,1763154057284,-500.0,0.00022523,2]
[393977869,1763154057310,-500.0,0.00022523,2]
[393977870,1763154057339,-500.0,0.00022523,2]
[393977871,1763154057365,-500.0,0.00022523,2]
[393977872,1763154057391,-500.0,0.00022523,2]
[393977873,1763154057417,-500.0,0.00022523,2]
[393977874,1763154057446,-500.0,0.00022523,2]
[393977875,1763154057474,-500.0,0.00022523,2]
[393977876,1763154057500,-500.0,0.00022523,2]
[393977877,1763154057527,-500.0,0.00022523,2]
[393977878,1763154057553,-500.0,0.00022523,2]
[393977879,1763154057579,-500.0,0.00022523,2]
[393977880,1763154057606,-500.0,0.00022523,2]
[393977881,1763154057632,-500.0,0.00022523,2]
[393977882,1763154057660,-500.0,0.00022523,2]
[393977883,1763154057687,-500.0,0.00022523,2]
[393977884,1763154057714,-500.0,0.00022523,2]
[393977885,1763154057744,-500.0,0.00022523,2]
[393977886,1763154057771,-500.0,0.00022523,2]
[393977887,1763154057799,-500.0,0.00022523,2]
[393977888,1763154057828,-500.0,0.00022523,2]
[393977889,1763154057857,-500.0,0.00022523,2]
[393977890,1763154057885,-500.0,0.00022523,2]
[393977891,1763154057911,-500.0,0.00022523,2]
[393977892,1763154057939,-500.0,0.00022523,2]
[393977893,1763154057966,-500.0,0.00022523,2]
[393977894,1763154057994,-500.0,0.00022523,2]
[393977895,1763154058020,-500.0,0.00022523,2]
[393977896,1763154058044,-613.66202324,0.00022523,2]
[393977897,1763154058068,-285.65362656,0.00022523,2]
[393977898,1763154058092,-300.0,0.00022523,2]
[393977899,1763154058116,-50000.0,0.00022524,2]
[393977900,1763154058140,-195.0,0.00022527,2]
[393977901,1763154058163,-195.0,0.00022801,2]
[393977902,1763154058186,-195.00280124,0.00023075,2]
[393977903,1763154058211,-216.04548291,0.00024197,2]
[393977904,1763154058235,-420.0,0.00024462,2]
[393977905,1763154058258,-500.0,0.00024773,2]
[393977906,1763154058283,-890000.0,0.000248,2]
[393977907,1763154058307,-196.43,0.000248,7]
[393977908,1763154058332,-941.60294244,0.000248,2]
[393977909,1763154058360,-326186.622411,0.000249,2]
[393977910,1763154058494,-4408.0,0.0002506,2]
[393977911,1763154058519,-247.09853,0.00025142,2]
[393977912,1763154058543,-500.80962388,0.00025321,2]
[393977913,1763154058567,-150.0,0.00025552,2]
[393977914,1763154058592,-413.0,0.00025552,2]
[393977915,1763154058616,-413.0,0.00025552,2]
[393977916,1763154058639,-1986.21711399,0.00025875,2]
[393977917,1763154058665,-249.00157352,0.00026197,2]
[393977918,1763154058692,-587.0,0.00026568,2]
[393977919,1763154058719,-1986.21711399,0.00028182,2]
[393977920,1763154058746,-281.95766413,0.00028197,2]
[393977921,1763154058771,-283.02045333,0.00028215,2]
[393977922,1763154058798,-3893.7,0.000283,2]
[393977923,1763154058823,-441.0,0.00028493,2]
[393977924,1763154058848,-150.0,0.00028552,2]
[393977925,1763154058874,-413.0,0.00028552,2]
[393977926,1763154058899,-413.0,0.00028552,2]
[393977927,1763154058924,-441.0,0.0002863,2]
[393977928,1763154058953,-441.0,0.00028767,2]
[393977929,1763154058981,-160.0,0.00028783,2]
[393977930,1763154059010,-2510.9390221,0.0002883,2]
[393977931,1763154059036,-779.3852498,0.0002883,2]
[393977932,1763154059063,-823.0,0.00028855,2]
[393977933,1763154059091,-441.0,0.00028904,2]
[393977934,1763154059119,-441.0,0.00029041,2]
[393977935,1763154059146,-4887.71397897,0.00029063,2]
[393977936,1763154059175,-441.0,0.00029178,2]
[393977937,1763154059203,-441.0,0.00029315,2]
[393977938,1763154059230,-260.0,0.00029331,2]
[393977939,1763154059257,-2024.09422834,0.00029446,2]
[393977940,1763154059284,-441.0,0.00029452,2]
[393977941,1763154059312,-441.0,0.00029589,2]
[393977942,1763154059343,-2024.09422834,0.0002968,2]
[393977943,1763154059370,-441.0,0.00029726,2]
[393977944,1763154059399,-441.0,0.00029863,2]
[393977945,1763154059427,-360.0,0.00029879,2]
[393977946,1763154059454,-441.0,0.0003,2]
[393977947,1763154059478,-166.0,0.0003,7]
[393977948,1763154059503,-151.0,0.0003,7]
[393977949,1763154059529,-172.0,0.0003,7]
[393977950,1763154059555,-151.0,0.0003,7]
[393977951,1763154059583,-151.0,0.0003,7]
[393977952,1763154059609,-151.0,0.0003,7]
[393977953,1763154059637,-332.0,0.0003,7]
[393977954,1763154059665,-151.0,0.0003,7]
[393977955,1763154059694,-332.0,0.0003,7]
[393977956,1763154059726,-151.0,0.0003,7]
[393977957,1763154059753,-332.0,0.0003,7]
[393977958,1763154059782,-151.0,0.0003,7]
[393977959,1763154059829,-332.0,0.0003,7]
[393977960,1763154059856,-151.0,0.0003,7]
[393977961,1763154059885,-332.0,0.0003,7]
[393977962,1763154059914,-151.0,0.0003,7]
[393977963,1763154059944,-332.0,0.0003,7]
[393977964,1763154059971,-151.0,0.0003,7]
[393977965,1763154060000,-332.0,0.0003,7]
[393977966,1763154060029,-151.0,0.0003,7]
[393977967,1763154060059,-255.30340528,0.0003,7]
[393977968,1763154060089,-151.0,0.0003,7]
[393977969,1763154060119,-332.0,0.0003,7]
[393977970,1763154060148,-151.0,0.0003,7]
[393977971,1763154060178,-332.0,0.0003,7]
[393977972,1763154060208,-151.0,0.0003,7]
[393977973,1763154060237,-332.0,0.0003,7]
[393977974,1763154060265,-151.0,0.0003,7]
[393977975,1763154060295,-151.0,0.0003,7]
[393977976,1763154060340,-151.0,0.0003,7]
[393977977,1763154060378,-174.0,0.0003,7]
[393977978,1763154060408,-174.49557539,0.0003,7]
[393977979,1763154060445,-151.0,0.0003,7]
[393977980,1763154060479,-151.0,0.0003,7]
[393977981,1763154060511,-151.0,0.0003,7]
[393977982,1763154060541,-151.0,0.0003,7]
[393977983,1763154060574,-151.0,0.0003,7]
[393977984,1763154060605,-270.58431507,0.0003,7]
[393977985,1763154060636,-151.0,0.0003,7]
[393977986,1763154060666,-151.0,0.0003,7]
[393977987,1763154060697,-151.0,0.0003,7]
[393977988,1763154060728,-151.0,0.0003,7]
[393977989,1763154060758,-163.45184402,0.0003,7]
[393977990,1763154060789,-201.91401503,0.0003,7]
[393977991,1763154060820,-151.0,0.0003,7]
[393977992,1763154060851,-151.0,0.0003,7]
[393977993,1763154060881,-151.0,0.0003,7]
[393977994,1763154060913,-332.0,0.0003,7]
[393977995,1763154060946,-151.0,0.0003,7]
[393977996,1763154060977,-332.0,0.0003,7]
[393977997,1763154061008,-151.0,0.0003,7]
[393977998,1763154061037,-332.0,0.0003,7]
[393977999,1763154061068,-151.0,0.0003,7]
[393978000,1763154061098,-332.0,0.0003,7]
[393978001,1763154061307,-151.0,0.0003,7]
[393978002,1763154061344,-151.0,0.00030083,7]
[393978003,1763154061379,-536.36159651,0.00030093,2]
[393978004,1763154061412,-229.78857775,0.00030093,2]
[393978005,1763154061446,-180.0,0.00030115,2]
[393978006,1763154061479,-286.86073794,0.0003013,2]
[393978007,1763154061511,-441.0,0.00030137,2]
[393978008,1763154061541,-500.0,0.00030137,2]
[393978009,1763154061574,-536.36159651,0.00030181,5]
[393978010,1763154061612,-314.91375475,0.00030197,2]
[393978011,1763154061645,-166.66666665,0.00030203,2]
[393978012,1763154061676,-673.79615762,0.0003022,2]
[393978013,1763154061707,-313.1111365,0.00030224,2]
[393978014,1763154061739,-304.05490737,0.00030224,2]
[393978015,1763154061771,-152.02745368,0.00030224,2]
[393978016,1763154061810,-156.55556824,0.00030224,2]
[393978017,1763154061840,-536.36159651,0.00030268,9]
[393978018,1763154061871,-441.0,0.00030274,2]
[393978019,1763154061901,-500.0,0.00030274,2]
[393978020,1763154061930,-536.36159651,0.00030355,13]
[393978021,1763154061964,-313.1111365,0.00030406,9]
[393978022,1763154061997,-441.0,0.00030411,2]
[393978023,1763154062027,-500.0,0.00030411,2]
[393978024,1763154062057,-460.0,0.00030427,2]
[393978025,1763154062086,-160.0,0.0003047,2]
[393978026,1763154062116,-400.38245665,0.0003047,2]
[393978027,1763154062145,-1986.21711399,0.00030489,2]
[393978028,1763154062173,-333.33333333,0.00030543,2]
[393978029,1763154062205,-441.0,0.00030548,2]
[393978030,1763154062234,-500.0,0.00030548,2]
[393978031,1763154062262,-313.1111365,0.00030588,17]
[393978032,1763154062292,-165.06126799,0.00030665,56]
[393978033,1763154062321,-441.0,0.00030685,2]
[393978034,1763154062350,-500.0,0.00030685,2]
[393978035,1763154062378,-333.33333333,0.00030727,9]
[393978036,1763154062411,-313.1111365,0.0003077,25]
[393978037,1763154062443,-629.0,0.00030817,2]
[393978038,1763154062472,-2148.0,0.00030817,2]
[393978039,1763154062501,-987.0,0.00030817,2]
[393978040,1763154062532,-441.0,0.00030822,2]
[393978041,1763154062562,-500.0,0.00030822,2]
[393978042,1763154062592,-441.0,0.00030959,2]
[393978043,1763154062620,-500.0,0.00030959,2]
[393978044,1763154062648,-560.0,0.00030975,2]
[393978045,1763154062692,-305.01986838,0.0003099,2]
[393978046,1763154062731,-1149.73,0.00031,10]
[393978047,1763154062769,-154.63306709,0.00031035,30]
[393978048,1763154062808,-441.0,0.00031096,2]
[393978049,1763154062848,-500.0,0.00031096,2]